Workbook

Sheet Read Me
A2: Smart Invoice
A4: Welcome to Smart Invoice, an invoice generator tool to help your business with quick & smart billing & invoice documentation process. Here are some features you can enjoy :
A5: [] Handle 20 products, 2 customers & 300 sales transactions.
A6: [] Taxable / non-taxable items option (sales tax only calculated on taxable items).
A7: [] Automatic invoice issuance & tracking using drop down navigation.
A8: [] Use your business logo for the invoice.
A9: [] Invoice auto numbering with your pre-defined setup.
A10: [] Invoice wording customization.
A11: If you find any difficulties in using this tool, or if you want to any further customization, please contact me at baskoro.prasetyo@aripra-consulting.com.

Sheet Company Setup
A1: =B4 -> Aripra Worldwide
A2: Company Data Setup
A4: Company Name : | B4: Aripra Worldwide
A6: Company Registration Information | E6: Company Bank Information
A7: Company Address - Line 1 : | B7: Kencana Loka | E7: Beneficiary Name | F7: =B4 -> Aripra Worldwide
A8: Company Address - Line 2 : | B8: BSD City - Banten | E8: Bank Name | F8: Bank GGG WORLDWIDE
A9: Company Address - Line 3 : | B9: Indonesia | E9: Bank Branch Name/Code : | F9: 775
A10: Email : | B10: email@email.com | E10: Account Number : | F10: 271883749
A11: Phone No : | B11: +62 21 555555 | E11: IBAN Number : | F11: IBAN 453672271883749
A12: Company Tax ID : | B12: 2788199749 | E12: Swift Code : | F12: JHHSIIX
A14: Invoice Number Format : | B14: AC 201500 | E14: Customize the invoice bottom line wording below
A16: Invoice Currency : | B16: USD | E16: Total Sales | F16: Total Sales (USD)
A18: Sales Tax Rate : | B18: 0.1 | E18: Sales Tax | F18: VAT on Taxable Items (10%)
E20: Total Invoice Balance | F20: Total Invoice (USD)
E22: Thank you comments | F22: [ THANK YOU FOR YOUR BUSINESS ]
A24: Product Description | B24: Unit Price | C24: Put "x" mark for taxable item | E24: Create your company logo between this box & below line
A25: Product 1 | B25: 200 | C25: X
A26: Product 2 | B26: 400 | C26: X
A27: Product 3 | B27: 600 | C27: X
A28: Product 4 | B28: 100 | C28: X
A29: Product 5 | B29: 50 | C29: X
A30: Product 6 | B30: 44 | C30: X
A31: Product 7 | B31: 100.5 | C31: X
A32: Product 8 | B32: 250.5 | C32: X
A33: Product 9 | B33: 350 | C33: X
A34: Product 10 | B34: 150 | C34: X
A35: Product 11 | B35: 110 | C35: X
A36: Product 12 | B36: 90 | C36: X
A37: Product 13 | B37: 40 | C37: X
A38: Product 14 | B38: 30 | C38: X
A39: Product 15 | B39: 20 | C39: X
A40: Product 16 | B40: 10 | C40: X
A41: Product 17 | B41: 15 | C41: X
A42: Product 18 | B42: 20 | C42: X
A43: Product 19 | B43: 60 | C43: X
A44: Product 20 | B44: 70 | C44: X

Sheet Customer Setup
A1: ='Company Setup'!B4 -> Aripra Worldwide
A2: Customer Data Setup
A5: Customer Name | B5: : | C5: Customer Name 1 | D5: Customer Name 2
A7: Address Line 1 | B7: : | C7: Customer 1 Address Line 1 | D7: Customer 2 Address Line 1
A8: Address Line 2 | B8: : | C8: Customer 1 Address Line 2 | D8: Customer 2 Address Line 2
A9: Address Line 3 | B9: : | C9: Customer 1 Address Line 3 | D9: Customer 2 Address Line 3
A10: Email | B10: : | C10: email@email.com | D10: email2@email.com
A11: Phone | B11: : | C11: +001-188475 | D11: +001-188444
A12: Contact Person | B12: : | C12: Mr. Joe Him | D12: Mrs. Jane Her
A14: Payment Terms | B14: : | C14: Cash on Delivery | D14: 30
A19: =COUNTA(C5:AZ5) -> 2
C20: <<<>>>
A21: 1 | C21: =IF($A21>$A$19,"",INDEX($C$5:$AZ$5,A21)) -> Customer Name 1
A22: =A21+1 -> 2 | C22: =IF($A22>$A$19,"",INDEX($C$5:$AZ$5,A22)) -> Customer Name 2
A23: =A22+1 -> 3
A24: 4
A25: 5
A26: 6
A27: 7
A28: 8
A29: 9
A30: 10
A31: 11
A32: 12
A33: 13
A34: 14
A35: 15
A36: 16
A37: 17
A38: 18
A39: 19
A40: 20
A41: 21
A42: 22
A43: 23
A44: 24
A45: 25
A46: 26
A47: 27
A48: 28
A49: 29
A50: 30
A51: 31
A52: 32
A53: 33
A54: 34
A55: 35
A56: 36
A57: 37
A58: 38
A59: 39
A60: 40
A61: 41
A62: 42
A63: 43
A64: 44
A65: 45
A66: 46
A67: 47
A68: 48
A69: 49
A70: 50

Sheet Sales Input
A1: ='Company Setup'!B4 -> Aripra Worldwide
A2: Sales Data Input Form
C3: =IF(C8<10,TEXT(C8,"00#"),IF(C8<100,TEXT(C8,"0##"),TEXT(C8,"#"))) -> 001 | D3: =IF(D8<10,TEXT(D8,"00#"),IF(D8<100,TEXT(D8,"0##"),TEXT(D8,"#"))) -> 002 | E3: 003 | F3: 004 | G3: 005 | H3: 006 | I3: 007 | J3: 008 | K3: 009 | L3: 010 | M3: 011 | N3: 012 | O3: 013 | P3: 014 | Q3: 015 | R3: 016 | S3: 017 | T3: 018 | U3: 019 | V3: 020 | W3: 021 | X3: 022 | Y3: 023 | Z3: 024 | AA3: 025 | AB3: 026 | AC3: 027 | AD3: 028 | AE3: 029 | AF3: 030 | AG3: 031 | AH3: 032 | AI3: 033 | AJ3: 034 | AK3: 035 | AL3: 036 | AM3: 037 | AN3: 038 | AO3: 039 | AP3: 040 | AQ3: 041 | AR3: 042 | AS3: 043 | AT3: 044 | AU3: 045 | AV3: 046 | AW3: 047 | AX3: 048 | AY3: 049 | AZ3: 050 | BA3: 051 | BB3: 052 | BC3: 053 | BD3: 054 | BE3: 055 | BF3: 056 | BG3: 057 | BH3: 058 | BI3: 059 | BJ3: 060 | BK3: 061 | BL3: 062 | BM3: 063 | BN3: 064 | BO3: 065 | BP3: =IF(BP8<10,TEXT(BP8,"00#"),IF(BP8<100,TEXT(BP8,"0##"),TEXT(BP8,"#"))) -> 066 | BQ3: 067 | BR3: 068 | BS3: 069 | BT3: 070 | BU3: 071 | BV3: 072 | BW3: 073 | BX3: 074 | BY3: 075 | BZ3: 076 | CA3: 077 | CB3: 078 | CC3: 079 | CD3: 080 | CE3: 081 | CF3: 082 | CG3: 083 | CH3: 084 | CI3: 085 | CJ3: 086 | CK3: 087 | CL3: 088 | CM3: 089 | CN3: 090 | CO3: 091 | CP3: 092 | CQ3: 093 | CR3: 094 | CS3: 095 | CT3: 096 | CU3: 097 | CV3: 098 | CW3: 099 | CX3: 100 | CY3: 101 | CZ3: 102 | DA3: 103 | DB3: 104 | DC3: 105 | DD3: 106 | DE3: 107 | DF3: 108 | DG3: 109 | DH3: 110 | DI3: 111 | DJ3: 112 | DK3: 113 | DL3: 114 | DM3: 115 | DN3: 116 | DO3: 117 | DP3: 118 | DQ3: 119 | DR3: 120 | DS3: 121 | DT3: 122 | DU3: 123 | DV3: 124 | DW3: 125 | DX3: 126 | DY3: 127 | DZ3: 128 | EA3: 129 | EB3: =IF(EB8<10,TEXT(EB8,"00#"),IF(EB8<100,TEXT(EB8,"0##"),TEXT(EB8,"#"))) -> 130 | EC3: 131 | ED3: 132 | EE3: 133 | EF3: 134 | EG3: 135 | EH3: 136 | EI3: 137 | EJ3: 138 | EK3: 139 | EL3: 140 | EM3: 141 | EN3: 142 | EO3: 143 | EP3: 144 | EQ3: 145 | ER3: 146 | ES3: 147 | ET3: 148 | EU3: 149 | EV3: 150 | EW3: 151 | EX3: 152 | EY3: 153 | EZ3: 154 | FA3: 155 | FB3: 156 | FC3: 157 | FD3: 158 | FE3: 159 | FF3: 160 | FG3: 161 | FH3: 162 | FI3: 163 | FJ3: 164 | FK3: 165 | FL3: 166 | FM3: 167 | FN3: 168 | FO3: 169 | FP3: 170 | FQ3: 171 | FR3: 172 | FS3: 173 | FT3: 174 | FU3: 175 | FV3: 176 | FW3: 177 | FX3: 178 | FY3: 179 | FZ3: 180 | GA3: 181 | GB3: 182 | GC3: 183 | GD3: 184 | GE3: 185 | GF3: 186 | GG3: 187 | GH3: 188 | GI3: 189 | GJ3: 190 | GK3: 191 | GL3: 192 | GM3: 193 | GN3: =IF(GN8<10,TEXT(GN8,"00#"),IF(GN8<100,TEXT(GN8,"0##"),TEXT(GN8,"#"))) -> 194 | GO3: 195 | GP3: 196 | GQ3: 197 | GR3: 198 | GS3: 199 | GT3: 200 | GU3: 201 | GV3: 202 | GW3: 203 | GX3: 204 | GY3: 205 | GZ3: 206 | HA3: 207 | HB3: 208 | HC3: 209 | HD3: 210 | HE3: 211 | HF3: 212 | HG3: 213 | HH3: 214 | HI3: 215 | HJ3: 216 | HK3: 217 | HL3: 218 | HM3: 219 | HN3: 220 | HO3: 221 | HP3: 222 | HQ3: 223 | HR3: 224 | HS3: 225 | HT3: 226 | HU3: 227 | HV3: 228 | HW3: 229 | HX3: 230 | HY3: 231 | HZ3: 232 | IA3: 233 | IB3: 234 | IC3: 235 | ID3: 236 | IE3: 237 | IF3: 238 | IG3: 239 | IH3: 240 | II3: 241 | IJ3: 242 | IK3: 243 | IL3: 244 | IM3: 245 | IN3: 246 | IO3: 247 | IP3: 248 | IQ3: 249 | IR3: 250 | IS3: 251 | IT3: 252 | IU3: 253 | IV3: 254 | IW3: 255 | IX3: 256 | IY3: 257 | IZ3: =IF(IZ8<10,TEXT(IZ8,"00#"),IF(IZ8<100,TEXT(IZ8,"0##"),TEXT(IZ8,"#"))) -> 258 | JA3: 259 | JB3: 260 | JC3: 261 | JD3: 262 | JE3: 263 | JF3: 264 | JG3: 265 | JH3: 266 | JI3: 267 | JJ3: 268 | JK3: 269 | JL3: 270 | JM3: 271 | JN3: 272 | JO3: 273 | JP3: 274 | JQ3: 275 | JR3: 276 | JS3: 277 | JT3: 278 | JU3: 279 | JV3: 280 | JW3: 281 | JX3: 282 | JY3: 283 | JZ3: 284 | KA3: 285 | KB3: 286 | KC3: 287 | KD3: 288 | KE3: 289 | KF3: 290 | KG3: 291 | KH3: 292 | KI3: 293 | KJ3: 294 | KK3: 295 | KL3: 296 | KM3: 297 | KN3: 298 | KO3: 299 | KP3: 300
B4: Invoice No >>>>> | C4: ='Company Setup'!$B$14&"-"&C3 -> AC 201500-001 | D4: ='Company Setup'!$B$14&"-"&D3 -> AC 201500-002 | E4: ='Company Setup'!$B$14&"-"&E3 -> AC 201500-003 | F4: ='Company Setup'!$B$14&"-"&F3 -> AC 201500-004 | G4: ='Company Setup'!$B$14&"-"&G3 -> AC 201500-005 | H4: ='Company Setup'!$B$14&"-"&H3 -> AC 201500-006 | I4: ='Company Setup'!$B$14&"-"&I3 -> AC 201500-007 | J4: ='Company Setup'!$B$14&"-"&J3 -> AC 201500-008 | K4: ='Company Setup'!$B$14&"-"&K3 -> AC 201500-009 | L4: ='Company Setup'!$B$14&"-"&L3 -> AC 201500-010 | M4: ='Company Setup'!$B$14&"-"&M3 -> AC 201500-011 | N4: ='Company Setup'!$B$14&"-"&N3 -> AC 201500-012 | O4: ='Company Setup'!$B$14&"-"&O3 -> AC 201500-013 | P4: ='Company Setup'!$B$14&"-"&P3 -> AC 201500-014 | Q4: ='Company Setup'!$B$14&"-"&Q3 -> AC 201500-015 | R4: ='Company Setup'!$B$14&"-"&R3 -> AC 201500-016 | S4: ='Company Setup'!$B$14&"-"&S3 -> AC 201500-017 | T4: ='Company Setup'!$B$14&"-"&T3 -> AC 201500-018 | U4: ='Company Setup'!$B$14&"-"&U3 -> AC 201500-019 | V4: ='Company Setup'!$B$14&"-"&V3 -> AC 201500-020 | W4: ='Company Setup'!$B$14&"-"&W3 -> AC 201500-021 | X4: ='Company Setup'!$B$14&"-"&X3 -> AC 201500-022 | Y4: ='Company Setup'!$B$14&"-"&Y3 -> AC 201500-023 | Z4: ='Company Setup'!$B$14&"-"&Z3 -> AC 201500-024 | AA4: ='Company Setup'!$B$14&"-"&AA3 -> AC 201500-025 | AB4: ='Company Setup'!$B$14&"-"&AB3 -> AC 201500-026 | AC4: ='Company Setup'!$B$14&"-"&AC3 -> AC 201500-027 | AD4: ='Company Setup'!$B$14&"-"&AD3 -> AC 201500-028 | AE4: ='Company Setup'!$B$14&"-"&AE3 -> AC 201500-029 | AF4: ='Company Setup'!$B$14&"-"&AF3 -> AC 201500-030 | AG4: ='Company Setup'!$B$14&"-"&AG3 -> AC 201500-031 | AH4: ='Company Setup'!$B$14&"-"&AH3 -> AC 201500-032 | AI4: ='Company Setup'!$B$14&"-"&AI3 -> AC 201500-033 | AJ4: ='Company Setup'!$B$14&"-"&AJ3 -> AC 201500-034 | AK4: ='Company Setup'!$B$14&"-"&AK3 -> AC 201500-035 | AL4: ='Company Setup'!$B$14&"-"&AL3 -> AC 201500-036 | AM4: ='Company Setup'!$B$14&"-"&AM3 -> AC 201500-037 | AN4: ='Company Setup'!$B$14&"-"&AN3 -> AC 201500-038 | AO4: ='Company Setup'!$B$14&"-"&AO3 -> AC 201500-039 | AP4: ='Company Setup'!$B$14&"-"&AP3 -> AC 201500-040 | AQ4: ='Company Setup'!$B$14&"-"&AQ3 -> AC 201500-041 | AR4: ='Company Setup'!$B$14&"-"&AR3 -> AC 201500-042 | AS4: ='Company Setup'!$B$14&"-"&AS3 -> AC 201500-043 | AT4: ='Company Setup'!$B$14&"-"&AT3 -> AC 201500-044 | AU4: ='Company Setup'!$B$14&"-"&AU3 -> AC 201500-045 | AV4: ='Company Setup'!$B$14&"-"&AV3 -> AC 201500-046 | AW4: ='Company Setup'!$B$14&"-"&AW3 -> AC 201500-047 | AX4: ='Company Setup'!$B$14&"-"&AX3 -> AC 201500-048 | AY4: ='Company Setup'!$B$14&"-"&AY3 -> AC 201500-049 | AZ4: ='Company Setup'!$B$14&"-"&AZ3 -> AC 201500-050 | BA4: ='Company Setup'!$B$14&"-"&BA3 -> AC 201500-051 | BB4: ='Company Setup'!$B$14&"-"&BB3 -> AC 201500-052 | BC4: ='Company Setup'!$B$14&"-"&BC3 -> AC 201500-053 | BD4: ='Company Setup'!$B$14&"-"&BD3 -> AC 201500-054 | BE4: ='Company Setup'!$B$14&"-"&BE3 -> AC 201500-055 | BF4: ='Company Setup'!$B$14&"-"&BF3 -> AC 201500-056 | BG4: ='Company Setup'!$B$14&"-"&BG3 -> AC 201500-057 | BH4: ='Company Setup'!$B$14&"-"&BH3 -> AC 201500-058 | BI4: ='Company Setup'!$B$14&"-"&BI3 -> AC 201500-059 | BJ4: ='Company Setup'!$B$14&"-"&BJ3 -> AC 201500-060 | BK4: ='Company Setup'!$B$14&"-"&BK3 -> AC 201500-061 | BL4: ='Company Setup'!$B$14&"-"&BL3 -> AC 201500-062 | BM4: ='Company Setup'!$B$14&"-"&BM3 -> AC 201500-063 | BN4: ='Company Setup'!$B$14&"-"&BN3 -> AC 201500-064 | BO4: ='Company Setup'!$B$14&"-"&BO3 -> AC 201500-065 | BP4: ='Company Setup'!$B$14&"-"&BP3 -> AC 201500-066 | BQ4: ='Company Setup'!$B$14&"-"&BQ3 -> AC 201500-067 | BR4: ='Company Setup'!$B$14&"-"&BR3 -> AC 201500-068 | BS4: ='Company Setup'!$B$14&"-"&BS3 -> AC 201500-069 | BT4: ='Company Setup'!$B$14&"-"&BT3 -> AC 201500-070 | BU4: ='Company Setup'!$B$14&"-"&BU3 -> AC 201500-071 | BV4: ='Company Setup'!$B$14&"-"&BV3 -> AC 201500-072 | BW4: ='Company Setup'!$B$14&"-"&BW3 -> AC 201500-073 | BX4: ='Company Setup'!$B$14&"-"&BX3 -> AC 201500-074 | BY4: ='Company Setup'!$B$14&"-"&BY3 -> AC 201500-075 | BZ4: ='Company Setup'!$B$14&"-"&BZ3 -> AC 201500-076 | CA4: ='Company Setup'!$B$14&"-"&CA3 -> AC 201500-077 | CB4: ='Company Setup'!$B$14&"-"&CB3 -> AC 201500-078 | CC4: ='Company Setup'!$B$14&"-"&CC3 -> AC 201500-079 | CD4: ='Company Setup'!$B$14&"-"&CD3 -> AC 201500-080 | CE4: ='Company Setup'!$B$14&"-"&CE3 -> AC 201500-081 | CF4: ='Company Setup'!$B$14&"-"&CF3 -> AC 201500-082 | CG4: ='Company Setup'!$B$14&"-"&CG3 -> AC 201500-083 | CH4: ='Company Setup'!$B$14&"-"&CH3 -> AC 201500-084 | CI4: ='Company Setup'!$B$14&"-"&CI3 -> AC 201500-085 | CJ4: ='Company Setup'!$B$14&"-"&CJ3 -> AC 201500-086 | CK4: ='Company Setup'!$B$14&"-"&CK3 -> AC 201500-087 | CL4: ='Company Setup'!$B$14&"-"&CL3 -> AC 201500-088 | CM4: ='Company Setup'!$B$14&"-"&CM3 -> AC 201500-089 | CN4: ='Company Setup'!$B$14&"-"&CN3 -> AC 201500-090 | CO4: ='Company Setup'!$B$14&"-"&CO3 -> AC 201500-091 | CP4: ='Company Setup'!$B$14&"-"&CP3 -> AC 201500-092 | CQ4: ='Company Setup'!$B$14&"-"&CQ3 -> AC 201500-093 | CR4: ='Company Setup'!$B$14&"-"&CR3 -> AC 201500-094 | CS4: ='Company Setup'!$B$14&"-"&CS3 -> AC 201500-095 | CT4: ='Company Setup'!$B$14&"-"&CT3 -> AC 201500-096 | CU4: ='Company Setup'!$B$14&"-"&CU3 -> AC 201500-097 | CV4: ='Company Setup'!$B$14&"-"&CV3 -> AC 201500-098 | CW4: ='Company Setup'!$B$14&"-"&CW3 -> AC 201500-099 | CX4: ='Company Setup'!$B$14&"-"&CX3 -> AC 201500-100 | CY4: ='Company Setup'!$B$14&"-"&CY3 -> AC 201500-101 | CZ4: ='Company Setup'!$B$14&"-"&CZ3 -> AC 201500-102 | DA4: ='Company Setup'!$B$14&"-"&DA3 -> AC 201500-103 | DB4: ='Company Setup'!$B$14&"-"&DB3 -> AC 201500-104 | DC4: ='Company Setup'!$B$14&"-"&DC3 -> AC 201500-105 | DD4: ='Company Setup'!$B$14&"-"&DD3 -> AC 201500-106 | DE4: ='Company Setup'!$B$14&"-"&DE3 -> AC 201500-107 | DF4: ='Company Setup'!$B$14&"-"&DF3 -> AC 201500-108 | DG4: ='Company Setup'!$B$14&"-"&DG3 -> AC 201500-109 | DH4: ='Company Setup'!$B$14&"-"&DH3 -> AC 201500-110 | DI4: ='Company Setup'!$B$14&"-"&DI3 -> AC 201500-111 | DJ4: ='Company Setup'!$B$14&"-"&DJ3 -> AC 201500-112 | DK4: ='Company Setup'!$B$14&"-"&DK3 -> AC 201500-113 | DL4: ='Company Setup'!$B$14&"-"&DL3 -> AC 201500-114 | DM4: ='Company Setup'!$B$14&"-"&DM3 -> AC 201500-115 | DN4: ='Company Setup'!$B$14&"-"&DN3 -> AC 201500-116 | DO4: ='Company Setup'!$B$14&"-"&DO3 -> AC 201500-117 | DP4: ='Company Setup'!$B$14&"-"&DP3 -> AC 201500-118 | DQ4: ='Company Setup'!$B$14&"-"&DQ3 -> AC 201500-119 | DR4: ='Company Setup'!$B$14&"-"&DR3 -> AC 201500-120 | DS4: ='Company Setup'!$B$14&"-"&DS3 -> AC 201500-121 | DT4: ='Company Setup'!$B$14&"-"&DT3 -> AC 201500-122 | DU4: ='Company Setup'!$B$14&"-"&DU3 -> AC 201500-123 | DV4: ='Company Setup'!$B$14&"-"&DV3 -> AC 201500-124 | DW4: ='Company Setup'!$B$14&"-"&DW3 -> AC 201500-125 | DX4: ='Company Setup'!$B$14&"-"&DX3 -> AC 201500-126 | DY4: ='Company Setup'!$B$14&"-"&DY3 -> AC 201500-127 | DZ4: ='Company Setup'!$B$14&"-"&DZ3 -> AC 201500-128 | EA4: ='Company Setup'!$B$14&"-"&EA3 -> AC 201500-129 | EB4: ='Company Setup'!$B$14&"-"&EB3 -> AC 201500-130 | EC4: ='Company Setup'!$B$14&"-"&EC3 -> AC 201500-131 | ED4: ='Company Setup'!$B$14&"-"&ED3 -> AC 201500-132 | EE4: ='Company Setup'!$B$14&"-"&EE3 -> AC 201500-133 | EF4: ='Company Setup'!$B$14&"-"&EF3 -> AC 201500-134 | EG4: ='Company Setup'!$B$14&"-"&EG3 -> AC 201500-135 | EH4: ='Company Setup'!$B$14&"-"&EH3 -> AC 201500-136 | EI4: ='Company Setup'!$B$14&"-"&EI3 -> AC 201500-137 | EJ4: ='Company Setup'!$B$14&"-"&EJ3 -> AC 201500-138 | EK4: ='Company Setup'!$B$14&"-"&EK3 -> AC 201500-139 | EL4: ='Company Setup'!$B$14&"-"&EL3 -> AC 201500-140 | EM4: ='Company Setup'!$B$14&"-"&EM3 -> AC 201500-141 | EN4: ='Company Setup'!$B$14&"-"&EN3 -> AC 201500-142 | EO4: ='Company Setup'!$B$14&"-"&EO3 -> AC 201500-143 | EP4: ='Company Setup'!$B$14&"-"&EP3 -> AC 201500-144 | EQ4: ='Company Setup'!$B$14&"-"&EQ3 -> AC 201500-145 | ER4: ='Company Setup'!$B$14&"-"&ER3 -> AC 201500-146 | ES4: ='Company Setup'!$B$14&"-"&ES3 -> AC 201500-147 | ET4: ='Company Setup'!$B$14&"-"&ET3 -> AC 201500-148 | EU4: ='Company Setup'!$B$14&"-"&EU3 -> AC 201500-149 | EV4: ='Company Setup'!$B$14&"-"&EV3 -> AC 201500-150 | EW4: ='Company Setup'!$B$14&"-"&EW3 -> AC 201500-151 | EX4: ='Company Setup'!$B$14&"-"&EX3 -> AC 201500-152 | EY4: ='Company Setup'!$B$14&"-"&EY3 -> AC 201500-153 | EZ4: ='Company Setup'!$B$14&"-"&EZ3 -> AC 201500-154 | FA4: ='Company Setup'!$B$14&"-"&FA3 -> AC 201500-155 | FB4: ='Company Setup'!$B$14&"-"&FB3 -> AC 201500-156 | FC4: ='Company Setup'!$B$14&"-"&FC3 -> AC 201500-157 | FD4: ='Company Setup'!$B$14&"-"&FD3 -> AC 201500-158 | FE4: ='Company Setup'!$B$14&"-"&FE3 -> AC 201500-159 | FF4: ='Company Setup'!$B$14&"-"&FF3 -> AC 201500-160 | FG4: ='Company Setup'!$B$14&"-"&FG3 -> AC 201500-161 | FH4: ='Company Setup'!$B$14&"-"&FH3 -> AC 201500-162 | FI4: ='Company Setup'!$B$14&"-"&FI3 -> AC 201500-163 | FJ4: ='Company Setup'!$B$14&"-"&FJ3 -> AC 201500-164 | FK4: ='Company Setup'!$B$14&"-"&FK3 -> AC 201500-165 | FL4: ='Company Setup'!$B$14&"-"&FL3 -> AC 201500-166 | FM4: ='Company Setup'!$B$14&"-"&FM3 -> AC 201500-167 | FN4: ='Company Setup'!$B$14&"-"&FN3 -> AC 201500-168 | FO4: ='Company Setup'!$B$14&"-"&FO3 -> AC 201500-169 | FP4: ='Company Setup'!$B$14&"-"&FP3 -> AC 201500-170 | FQ4: ='Company Setup'!$B$14&"-"&FQ3 -> AC 201500-171 | FR4: ='Company Setup'!$B$14&"-"&FR3 -> AC 201500-172 | FS4: ='Company Setup'!$B$14&"-"&FS3 -> AC 201500-173 | FT4: ='Company Setup'!$B$14&"-"&FT3 -> AC 201500-174 | FU4: ='Company Setup'!$B$14&"-"&FU3 -> AC 201500-175 | FV4: ='Company Setup'!$B$14&"-"&FV3 -> AC 201500-176 | FW4: ='Company Setup'!$B$14&"-"&FW3 -> AC 201500-177 | FX4: ='Company Setup'!$B$14&"-"&FX3 -> AC 201500-178 | FY4: ='Company Setup'!$B$14&"-"&FY3 -> AC 201500-179 | FZ4: ='Company Setup'!$B$14&"-"&FZ3 -> AC 201500-180 | GA4: ='Company Setup'!$B$14&"-"&GA3 -> AC 201500-181 | GB4: ='Company Setup'!$B$14&"-"&GB3 -> AC 201500-182 | GC4: ='Company Setup'!$B$14&"-"&GC3 -> AC 201500-183 | GD4: ='Company Setup'!$B$14&"-"&GD3 -> AC 201500-184 | GE4: ='Company Setup'!$B$14&"-"&GE3 -> AC 201500-185 | GF4: ='Company Setup'!$B$14&"-"&GF3 -> AC 201500-186 | GG4: ='Company Setup'!$B$14&"-"&GG3 -> AC 201500-187 | GH4: ='Company Setup'!$B$14&"-"&GH3 -> AC 201500-188 | GI4: ='Company Setup'!$B$14&"-"&GI3 -> AC 201500-189 | GJ4: ='Company Setup'!$B$14&"-"&GJ3 -> AC 201500-190 | GK4: ='Company Setup'!$B$14&"-"&GK3 -> AC 201500-191 | GL4: ='Company Setup'!$B$14&"-"&GL3 -> AC 201500-192 | GM4: ='Company Setup'!$B$14&"-"&GM3 -> AC 201500-193 | GN4: ='Company Setup'!$B$14&"-"&GN3 -> AC 201500-194 | GO4: ='Company Setup'!$B$14&"-"&GO3 -> AC 201500-195 | GP4: ='Company Setup'!$B$14&"-"&GP3 -> AC 201500-196 | GQ4: ='Company Setup'!$B$14&"-"&GQ3 -> AC 201500-197 | GR4: ='Company Setup'!$B$14&"-"&GR3 -> AC 201500-198 | GS4: ='Company Setup'!$B$14&"-"&GS3 -> AC 201500-199 | GT4: ='Company Setup'!$B$14&"-"&GT3 -> AC 201500-200 | GU4: ='Company Setup'!$B$14&"-"&GU3 -> AC 201500-201 | GV4: ='Company Setup'!$B$14&"-"&GV3 -> AC 201500-202 | GW4: ='Company Setup'!$B$14&"-"&GW3 -> AC 201500-203 | GX4: ='Company Setup'!$B$14&"-"&GX3 -> AC 201500-204 | GY4: ='Company Setup'!$B$14&"-"&GY3 -> AC 201500-205 | GZ4: ='Company Setup'!$B$14&"-"&GZ3 -> AC 201500-206 | HA4: ='Company Setup'!$B$14&"-"&HA3 -> AC 201500-207 | HB4: ='Company Setup'!$B$14&"-"&HB3 -> AC 201500-208 | HC4: ='Company Setup'!$B$14&"-"&HC3 -> AC 201500-209 | HD4: ='Company Setup'!$B$14&"-"&HD3 -> AC 201500-210 | HE4: ='Company Setup'!$B$14&"-"&HE3 -> AC 201500-211 | HF4: ='Company Setup'!$B$14&"-"&HF3 -> AC 201500-212 | HG4: ='Company Setup'!$B$14&"-"&HG3 -> AC 201500-213 | HH4: ='Company Setup'!$B$14&"-"&HH3 -> AC 201500-214 | HI4: ='Company Setup'!$B$14&"-"&HI3 -> AC 201500-215 | HJ4: ='Company Setup'!$B$14&"-"&HJ3 -> AC 201500-216 | HK4: ='Company Setup'!$B$14&"-"&HK3 -> AC 201500-217 | HL4: ='Company Setup'!$B$14&"-"&HL3 -> AC 201500-218 | HM4: ='Company Setup'!$B$14&"-"&HM3 -> AC 201500-219 | HN4: ='Company Setup'!$B$14&"-"&HN3 -> AC 201500-220 | HO4: ='Company Setup'!$B$14&"-"&HO3 -> AC 201500-221 | HP4: ='Company Setup'!$B$14&"-"&HP3 -> AC 201500-222 | HQ4: ='Company Setup'!$B$14&"-"&HQ3 -> AC 201500-223 | HR4: ='Company Setup'!$B$14&"-"&HR3 -> AC 201500-224 | HS4: ='Company Setup'!$B$14&"-"&HS3 -> AC 201500-225 | HT4: ='Company Setup'!$B$14&"-"&HT3 -> AC 201500-226 | HU4: ='Company Setup'!$B$14&"-"&HU3 -> AC 201500-227 | HV4: ='Company Setup'!$B$14&"-"&HV3 -> AC 201500-228 | HW4: ='Company Setup'!$B$14&"-"&HW3 -> AC 201500-229 | HX4: ='Company Setup'!$B$14&"-"&HX3 -> AC 201500-230 | HY4: ='Company Setup'!$B$14&"-"&HY3 -> AC 201500-231 | HZ4: ='Company Setup'!$B$14&"-"&HZ3 -> AC 201500-232 | IA4: ='Company Setup'!$B$14&"-"&IA3 -> AC 201500-233 | IB4: ='Company Setup'!$B$14&"-"&IB3 -> AC 201500-234 | IC4: ='Company Setup'!$B$14&"-"&IC3 -> AC 201500-235 | ID4: ='Company Setup'!$B$14&"-"&ID3 -> AC 201500-236 | IE4: ='Company Setup'!$B$14&"-"&IE3 -> AC 201500-237 | IF4: ='Company Setup'!$B$14&"-"&IF3 -> AC 201500-238 | IG4: ='Company Setup'!$B$14&"-"&IG3 -> AC 201500-239 | IH4: ='Company Setup'!$B$14&"-"&IH3 -> AC 201500-240 | II4: ='Company Setup'!$B$14&"-"&II3 -> AC 201500-241 | IJ4: ='Company Setup'!$B$14&"-"&IJ3 -> AC 201500-242 | IK4: ='Company Setup'!$B$14&"-"&IK3 -> AC 201500-243 | IL4: ='Company Setup'!$B$14&"-"&IL3 -> AC 201500-244 | IM4: ='Company Setup'!$B$14&"-"&IM3 -> AC 201500-245 | IN4: ='Company Setup'!$B$14&"-"&IN3 -> AC 201500-246 | IO4: ='Company Setup'!$B$14&"-"&IO3 -> AC 201500-247 | IP4: ='Company Setup'!$B$14&"-"&IP3 -> AC 201500-248 | IQ4: ='Company Setup'!$B$14&"-"&IQ3 -> AC 201500-249 | IR4: ='Company Setup'!$B$14&"-"&IR3 -> AC 201500-250 | IS4: ='Company Setup'!$B$14&"-"&IS3 -> AC 201500-251 | IT4: ='Company Setup'!$B$14&"-"&IT3 -> AC 201500-252 | IU4: ='Company Setup'!$B$14&"-"&IU3 -> AC 201500-253 | IV4: ='Company Setup'!$B$14&"-"&IV3 -> AC 201500-254 | IW4: ='Company Setup'!$B$14&"-"&IW3 -> AC 201500-255 | IX4: ='Company Setup'!$B$14&"-"&IX3 -> AC 201500-256 | IY4: ='Company Setup'!$B$14&"-"&IY3 -> AC 201500-257 | IZ4: ='Company Setup'!$B$14&"-"&IZ3 -> AC 201500-258 | JA4: ='Company Setup'!$B$14&"-"&JA3 -> AC 201500-259 | JB4: ='Company Setup'!$B$14&"-"&JB3 -> AC 201500-260 | JC4: ='Company Setup'!$B$14&"-"&JC3 -> AC 201500-261 | JD4: ='Company Setup'!$B$14&"-"&JD3 -> AC 201500-262 | JE4: ='Company Setup'!$B$14&"-"&JE3 -> AC 201500-263 | JF4: ='Company Setup'!$B$14&"-"&JF3 -> AC 201500-264 | JG4: ='Company Setup'!$B$14&"-"&JG3 -> AC 201500-265 | JH4: ='Company Setup'!$B$14&"-"&JH3 -> AC 201500-266 | JI4: ='Company Setup'!$B$14&"-"&JI3 -> AC 201500-267 | JJ4: ='Company Setup'!$B$14&"-"&JJ3 -> AC 201500-268 | JK4: ='Company Setup'!$B$14&"-"&JK3 -> AC 201500-269 | JL4: ='Company Setup'!$B$14&"-"&JL3 -> AC 201500-270 | JM4: ='Company Setup'!$B$14&"-"&JM3 -> AC 201500-271 | JN4: ='Company Setup'!$B$14&"-"&JN3 -> AC 201500-272 | JO4: ='Company Setup'!$B$14&"-"&JO3 -> AC 201500-273 | JP4: ='Company Setup'!$B$14&"-"&JP3 -> AC 201500-274 | JQ4: ='Company Setup'!$B$14&"-"&JQ3 -> AC 201500-275 | JR4: ='Company Setup'!$B$14&"-"&JR3 -> AC 201500-276 | JS4: ='Company Setup'!$B$14&"-"&JS3 -> AC 201500-277 | JT4: ='Company Setup'!$B$14&"-"&JT3 -> AC 201500-278 | JU4: ='Company Setup'!$B$14&"-"&JU3 -> AC 201500-279 | JV4: ='Company Setup'!$B$14&"-"&JV3 -> AC 201500-280 | JW4: ='Company Setup'!$B$14&"-"&JW3 -> AC 201500-281 | JX4: ='Company Setup'!$B$14&"-"&JX3 -> AC 201500-282 | JY4: ='Company Setup'!$B$14&"-"&JY3 -> AC 201500-283 | JZ4: ='Company Setup'!$B$14&"-"&JZ3 -> AC 201500-284 | KA4: ='Company Setup'!$B$14&"-"&KA3 -> AC 201500-285 | KB4: ='Company Setup'!$B$14&"-"&KB3 -> AC 201500-286 | KC4: ='Company Setup'!$B$14&"-"&KC3 -> AC 201500-287 | KD4: ='Company Setup'!$B$14&"-"&KD3 -> AC 201500-288 | KE4: ='Company Setup'!$B$14&"-"&KE3 -> AC 201500-289 | KF4: ='Company Setup'!$B$14&"-"&KF3 -> AC 201500-290 | KG4: ='Company Setup'!$B$14&"-"&KG3 -> AC 201500-291 | KH4: ='Company Setup'!$B$14&"-"&KH3 -> AC 201500-292 | KI4: ='Company Setup'!$B$14&"-"&KI3 -> AC 201500-293 | KJ4: ='Company Setup'!$B$14&"-"&KJ3 -> AC 201500-294 | KK4: ='Company Setup'!$B$14&"-"&KK3 -> AC 201500-295 | KL4: ='Company Setup'!$B$14&"-"&KL3 -> AC 201500-296 | KM4: ='Company Setup'!$B$14&"-"&KM3 -> AC 201500-297 | KN4: ='Company Setup'!$B$14&"-"&KN3 -> AC 201500-298 | KO4: ='Company Setup'!$B$14&"-"&KO3 -> AC 201500-299 | KP4: ='Company Setup'!$B$14&"-"&KP3 -> AC 201500-300
B5: Sales Date Input >>>>> | C5: 2015-01-10 | D5: 2015-01-10
B6: Customer PO Number Input >>>>> | C6: PO 33459 | D6: PO 12345
B7: Choose Customer Name >>>>> | C7: Customer Name 1 | D7: Customer Name 2 | E7: <<<>>> | F7: <<<>>> | G7: <<<>>> | H7: <<<>>> | I7: <<<>>> | J7: <<<>>> | K7: <<<>>> | L7: <<<>>> | M7: <<<>>> | N7: <<<>>> | O7: <<<>>> | P7: <<<>>> | Q7: <<<>>> | R7: <<<>>> | S7: <<<>>> | T7: <<<>>> | U7: <<<>>> | V7: <<<>>> | W7: <<<>>> | X7: <<<>>> | Y7: <<<>>> | Z7: <<<>>> | AA7: <<<>>> | AB7: <<<>>> | AC7: <<<>>> | AD7: <<<>>> | AE7: <<<>>> | AF7: <<<>>> | AG7: <<<>>> | AH7: <<<>>> | AI7: <<<>>> | AJ7: <<<>>> | AK7: <<<>>> | AL7: <<<>>> | AM7: <<<>>> | AN7: <<<>>> | AO7: <<<>>> | AP7: <<<>>> | AQ7: <<<>>> | AR7: <<<>>> | AS7: <<<>>> | AT7: <<<>>> | AU7: <<<>>> | AV7: <<<>>> | AW7: <<<>>> | AX7: <<<>>> | AY7: <<<>>> | AZ7: <<<>>> | BA7: <<<>>> | BB7: <<<>>> | BC7: <<<>>> | BD7: <<<>>> | BE7: <<<>>> | BF7: <<<>>> | BG7: <<<>>> | BH7: <<<>>> | BI7: <<<>>> | BJ7: <<<>>> | BK7: <<<>>> | BL7: <<<>>> | BM7: <<<>>> | BN7: <<<>>> | BO7: <<<>>> | BP7: <<<>>> | BQ7: <<<>>> | BR7: <<<>>> | BS7: <<<>>> | BT7: <<<>>> | BU7: <<<>>> | BV7: <<<>>> | BW7: <<<>>> | BX7: <<<>>> | BY7: <<<>>> | BZ7: <<<>>> | CA7: <<<>>> | CB7: <<<>>> | CC7: <<<>>> | CD7: <<<>>> | CE7: <<<>>> | CF7: <<<>>> | CG7: <<<>>> | CH7: <<<>>> | CI7: <<<>>> | CJ7: <<<>>> | CK7: <<<>>> | CL7: <<<>>> | CM7: <<<>>> | CN7: <<<>>> | CO7: <<<>>> | CP7: <<<>>> | CQ7: <<<>>> | CR7: <<<>>> | CS7: <<<>>> | CT7: <<<>>> | CU7: <<<>>> | CV7: <<<>>> | CW7: <<<>>> | CX7: <<<>>> | CY7: <<<>>> | CZ7: <<<>>> | DA7: <<<>>> | DB7: <<<>>> | DC7: <<<>>> | DD7: <<<>>> | DE7: <<<>>> | DF7: <<<>>> | DG7: <<<>>> | DH7: <<<>>> | DI7: <<<>>> | DJ7: <<<>>> | DK7: <<<>>> | DL7: <<<>>> | DM7: <<<>>> | DN7: <<<>>> | DO7: <<<>>> | DP7: <<<>>> | DQ7: <<<>>> | DR7: <<<>>> | DS7: <<<>>> | DT7: <<<>>> | DU7: <<<>>> | DV7: <<<>>> | DW7: <<<>>> | DX7: <<<>>> | DY7: <<<>>> | DZ7: <<<>>> | EA7: <<<>>> | EB7: <<<>>> | EC7: <<<>>> | ED7: <<<>>> | EE7: <<<>>> | EF7: <<<>>> | EG7: <<<>>> | EH7: <<<>>> | EI7: <<<>>> | EJ7: <<<>>> | EK7: <<<>>> | EL7: <<<>>> | EM7: <<<>>> | EN7: <<<>>> | EO7: <<<>>> | EP7: <<<>>> | EQ7: <<<>>> | ER7: <<<>>> | ES7: <<<>>> | ET7: <<<>>> | EU7: <<<>>> | EV7: <<<>>> | EW7: <<<>>> | EX7: <<<>>> | EY7: <<<>>> | EZ7: <<<>>> | FA7: <<<>>> | FB7: <<<>>> | FC7: <<<>>> | FD7: <<<>>> | FE7: <<<>>> | FF7: <<<>>> | FG7: <<<>>> | FH7: <<<>>> | FI7: <<<>>> | FJ7: <<<>>> | FK7: <<<>>> | FL7: <<<>>> | FM7: <<<>>> | FN7: <<<>>> | FO7: <<<>>> | FP7: <<<>>> | FQ7: <<<>>> | FR7: <<<>>> | FS7: <<<>>> | FT7: <<<>>> | FU7: <<<>>> | FV7: <<<>>> | FW7: <<<>>> | FX7: <<<>>> | FY7: <<<>>> | FZ7: <<<>>> | GA7: <<<>>> | GB7: <<<>>> | GC7: <<<>>> | GD7: <<<>>> | GE7: <<<>>> | GF7: <<<>>> | GG7: <<<>>> | GH7: <<<>>> | GI7: <<<>>> | GJ7: <<<>>> | GK7: <<<>>> | GL7: <<<>>> | GM7: <<<>>> | GN7: <<<>>> | GO7: <<<>>> | GP7: <<<>>> | GQ7: <<<>>> | GR7: <<<>>> | GS7: <<<>>> | GT7: <<<>>> | GU7: <<<>>> | GV7: <<<>>> | GW7: <<<>>> | GX7: <<<>>> | GY7: <<<>>> | GZ7: <<<>>> | HA7: <<<>>> | HB7: <<<>>> | HC7: <<<>>> | HD7: <<<>>> | HE7: <<<>>> | HF7: <<<>>> | HG7: <<<>>> | HH7: <<<>>> | HI7: <<<>>> | HJ7: <<<>>> | HK7: <<<>>> | HL7: <<<>>> | HM7: <<<>>> | HN7: <<<>>> | HO7: <<<>>> | HP7: <<<>>> | HQ7: <<<>>> | HR7: <<<>>> | HS7: <<<>>> | HT7: <<<>>> | HU7: <<<>>> | HV7: <<<>>> | HW7: <<<>>> | HX7: <<<>>> | HY7: <<<>>> | HZ7: <<<>>> | IA7: <<<>>> | IB7: <<<>>> | IC7: <<<>>> | ID7: <<<>>> | IE7: <<<>>> | IF7: <<<>>> | IG7: <<<>>> | IH7: <<<>>> | II7: <<<>>> | IJ7: <<<>>> | IK7: <<<>>> | IL7: <<<>>> | IM7: <<<>>> | IN7: <<<>>> | IO7: <<<>>> | IP7: <<<>>> | IQ7: <<<>>> | IR7: <<<>>> | IS7: <<<>>> | IT7: <<<>>> | IU7: <<<>>> | IV7: <<<>>> | IW7: <<<>>> | IX7: <<<>>> | IY7: <<<>>> | IZ7: <<<>>> | JA7: <<<>>> | JB7: <<<>>> | JC7: <<<>>> | JD7: <<<>>> | JE7: <<<>>> | JF7: <<<>>> | JG7: <<<>>> | JH7: <<<>>> | JI7: <<<>>> | JJ7: <<<>>> | JK7: <<<>>> | JL7: <<<>>> | JM7: <<<>>> | JN7: <<<>>> | JO7: <<<>>> | JP7: <<<>>> | JQ7: <<<>>> | JR7: <<<>>> | JS7: <<<>>> | JT7: <<<>>> | JU7: <<<>>> | JV7: <<<>>> | JW7: <<<>>> | JX7: <<<>>> | JY7: <<<>>> | JZ7: <<<>>> | KA7: <<<>>> | KB7: <<<>>> | KC7: <<<>>> | KD7: <<<>>> | KE7: <<<>>> | KF7: <<<>>> | KG7: <<<>>> | KH7: <<<>>> | KI7: <<<>>> | KJ7: <<<>>> | KK7: <<<>>> | KL7: <<<>>> | KM7: <<<>>> | KN7: <<<>>> | KO7: <<<>>> | KP7: <<<>>>
A8: No | B8: Product Description | C8: 1 | D8: =C8+1 -> 2 | E8: =D8+1 -> 3 | F8: 4 | G8: 5 | H8: 6 | I8: 7 | J8: 8 | K8: 9 | L8: 10 | M8: 11 | N8: 12 | O8: 13 | P8: 14 | Q8: 15 | R8: 16 | S8: 17 | T8: 18 | U8: 19 | V8: 20 | W8: 21 | X8: 22 | Y8: 23 | Z8: 24 | AA8: 25 | AB8: 26 | AC8: 27 | AD8: 28 | AE8: 29 | AF8: 30 | AG8: 31 | AH8: 32 | AI8: 33 | AJ8: 34 | AK8: 35 | AL8: 36 | AM8: 37 | AN8: 38 | AO8: 39 | AP8: 40 | AQ8: 41 | AR8: 42 | AS8: 43 | AT8: 44 | AU8: 45 | AV8: 46 | AW8: 47 | AX8: 48 | AY8: 49 | AZ8: 50 | BA8: 51 | BB8: 52 | BC8: 53 | BD8: 54 | BE8: 55 | BF8: 56 | BG8: 57 | BH8: 58 | BI8: 59 | BJ8: 60 | BK8: 61 | BL8: 62 | BM8: 63 | BN8: 64 | BO8: 65 | BP8: 66 | BQ8: =BP8+1 -> 67 | BR8: 68 | BS8: 69 | BT8: 70 | BU8: 71 | BV8: 72 | BW8: 73 | BX8: 74 | BY8: 75 | BZ8: 76 | CA8: 77 | CB8: 78 | CC8: 79 | CD8: 80 | CE8: 81 | CF8: 82 | CG8: 83 | CH8: 84 | CI8: 85 | CJ8: 86 | CK8: 87 | CL8: 88 | CM8: 89 | CN8: 90 | CO8: 91 | CP8: 92 | CQ8: 93 | CR8: 94 | CS8: 95 | CT8: 96 | CU8: 97 | CV8: 98 | CW8: 99 | CX8: 100 | CY8: =CX8+1 -> 101 | CZ8: 102 | DA8: 103 | DB8: 104 | DC8: 105 | DD8: 106 | DE8: 107 | DF8: 108 | DG8: 109 | DH8: 110 | DI8: 111 | DJ8: 112 | DK8: 113 | DL8: 114 | DM8: 115 | DN8: 116 | DO8: 117 | DP8: 118 | DQ8: 119 | DR8: 120 | DS8: 121 | DT8: 122 | DU8: 123 | DV8: 124 | DW8: 125 | DX8: 126 | DY8: 127 | DZ8: 128 | EA8: 129 | EB8: 130 | EC8: 131 | ED8: 132 | EE8: 133 | EF8: 134 | EG8: 135 | EH8: 136 | EI8: 137 | EJ8: 138 | EK8: 139 | EL8: 140 | EM8: 141 | EN8: 142 | EO8: 143 | EP8: 144 | EQ8: 145 | ER8: 146 | ES8: 147 | ET8: 148 | EU8: 149 | EV8: 150 | EW8: 151 | EX8: 152 | EY8: 153 | EZ8: 154 | FA8: 155 | FB8: 156 | FC8: 157 | FD8: 158 | FE8: 159 | FF8: 160 | FG8: 161 | FH8: 162 | FI8: 163 | FJ8: 164 | FK8: =FJ8+1 -> 165 | FL8: 166 | FM8: 167 | FN8: 168 | FO8: 169 | FP8: 170 | FQ8: 171 | FR8: 172 | FS8: 173 | FT8: 174 | FU8: 175 | FV8: 176 | FW8: 177 | FX8: 178 | FY8: 179 | FZ8: 180 | GA8: =FZ8+1 -> 181 | GB8: 182 | GC8: 183 | GD8: 184 | GE8: 185 | GF8: 186 | GG8: 187 | GH8: 188 | GI8: 189 | GJ8: 190 | GK8: 191 | GL8: 192 | GM8: 193 | GN8: 194 | GO8: 195 | GP8: 196 | GQ8: 197 | GR8: 198 | GS8: 199 | GT8: 200 | GU8: 201 | GV8: 202 | GW8: 203 | GX8: 204 | GY8: 205 | GZ8: 206 | HA8: 207 | HB8: 208 | HC8: 209 | HD8: 210 | HE8: 211 | HF8: 212 | HG8: 213 | HH8: 214 | HI8: 215 | HJ8: 216 | HK8: 217 | HL8: 218 | HM8: 219 | HN8: 220 | HO8: 221 | HP8: 222 | HQ8: 223 | HR8: 224 | HS8: 225 | HT8: 226 | HU8: 227 | HV8: 228 | HW8: 229 | HX8: 230 | HY8: 231 | HZ8: 232 | IA8: 233 | IB8: 234 | IC8: 235 | ID8: 236 | IE8: 237 | IF8: 238 | IG8: 239 | IH8: 240 | II8: 241 | IJ8: 242 | IK8: 243 | IL8: 244 | IM8: =IL8+1 -> 245 | IN8: 246 | IO8: 247 | IP8: 248 | IQ8: 249 | IR8: 250 | IS8: 251 | IT8: 252 | IU8: 253 | IV8: 254 | IW8: 255 | IX8: 256 | IY8: 257 | IZ8: 258 | JA8: 259 | JB8: 260 | JC8: 261 | JD8: 262 | JE8: 263 | JF8: 264 | JG8: 265 | JH8: 266 | JI8: 267 | JJ8: 268 | JK8: 269 | JL8: 270 | JM8: 271 | JN8: 272 | JO8: 273 | JP8: 274 | JQ8: 275 | JR8: 276 | JS8: 277 | JT8: 278 | JU8: 279 | JV8: 280 | JW8: 281 | JX8: 282 | JY8: 283 | JZ8: 284 | KA8: 285 | KB8: 286 | KC8: 287 | KD8: 288 | KE8: 289 | KF8: 290 | KG8: 291 | KH8: 292 | KI8: 293 | KJ8: 294 | KK8: 295 | KL8: 296 | KM8: 297 | KN8: 298 | KO8: 299 | KP8: 300
A9: 1 | B9: ='Company Setup'!A25 -> Product 1 | D9: 2
A10: =A9+1 -> 2 | B10: ='Company Setup'!A26 -> Product 2 | C10: 10 | D10: 2
A11: =A10+1 -> 3 | B11: ='Company Setup'!A27 -> Product 3 | D11: 3
A12: 4 | B12: ='Company Setup'!A28 -> Product 4 | C12: 5 | D12: 4
A13: 5 | B13: ='Company Setup'!A29 -> Product 5
A14: 6 | B14: ='Company Setup'!A30 -> Product 6 | C14: 3
A15: 7 | B15: ='Company Setup'!A31 -> Product 7
A16: 8 | B16: ='Company Setup'!A32 -> Product 8 | C16: 1 | D16: 7
A17: 9 | B17: ='Company Setup'!A33 -> Product 9 | D17: 8
A18: 10 | B18: ='Company Setup'!A34 -> Product 10 | C18: 4
A19: 11 | B19: ='Company Setup'!A35 -> Product 11 | D19: 12
A20: 12 | B20: ='Company Setup'!A36 -> Product 12 | C20: 5
A21: 13 | B21: ='Company Setup'!A37 -> Product 13
A22: 14 | B22: ='Company Setup'!A38 -> Product 14 | C22: 7
A23: 15 | B23: ='Company Setup'!A39 -> Product 15 | D23: 1
A24: 16 | B24: ='Company Setup'!A40 -> Product 16
A25: 17 | B25: ='Company Setup'!A41 -> Product 17 | D25: 3
A26: 18 | B26: ='Company Setup'!A42 -> Product 18 | C26: 12
A27: 19 | B27: ='Company Setup'!A43 -> Product 19
A28: 20 | B28: ='Company Setup'!A44 -> Product 20
A29: Total Sales Quantity | C29: =SUM(C9:C28) -> 47 | D29: =SUM(D9:D28) -> 42 | E29: 0 | F29: 0 | G29: 0 | H29: 0 | I29: 0 | J29: 0 | K29: 0 | L29: 0 | M29: 0 | N29: 0 | O29: 0 | P29: 0 | Q29: 0 | R29: 0 | S29: 0 | T29: 0 | U29: 0 | V29: 0 | W29: 0 | X29: 0 | Y29: 0 | Z29: 0 | AA29: 0 | AB29: 0 | AC29: 0 | AD29: 0 | AE29: 0 | AF29: 0 | AG29: 0 | AH29: 0 | AI29: 0 | AJ29: 0 | AK29: 0 | AL29: 0 | AM29: 0 | AN29: 0 | AO29: 0 | AP29: 0 | AQ29: 0 | AR29: 0 | AS29: 0 | AT29: 0 | AU29: 0 | AV29: 0 | AW29: 0 | AX29: 0 | AY29: 0 | AZ29: 0 | BA29: 0 | BB29: 0 | BC29: 0 | BD29: 0 | BE29: 0 | BF29: 0 | BG29: 0 | BH29: 0 | BI29: 0 | BJ29: 0 | BK29: 0 | BL29: 0 | BM29: 0 | BN29: 0 | BO29: 0 | BP29: =SUM(BP9:BP28) -> 0 | BQ29: 0 | BR29: 0 | BS29: 0 | BT29: 0 | BU29: 0 | BV29: 0 | BW29: 0 | BX29: 0 | BY29: 0 | BZ29: 0 | CA29: 0 | CB29: 0 | CC29: 0 | CD29: 0 | CE29: 0 | CF29: 0 | CG29: 0 | CH29: 0 | CI29: 0 | CJ29: 0 | CK29: 0 | CL29: 0 | CM29: 0 | CN29: 0 | CO29: 0 | CP29: 0 | CQ29: 0 | CR29: 0 | CS29: 0 | CT29: 0 | CU29: 0 | CV29: 0 | CW29: 0 | CX29: 0 | CY29: 0 | CZ29: 0 | DA29: 0 | DB29: 0 | DC29: 0 | DD29: 0 | DE29: 0 | DF29: 0 | DG29: 0 | DH29: 0 | DI29: 0 | DJ29: 0 | DK29: 0 | DL29: 0 | DM29: 0 | DN29: 0 | DO29: 0 | DP29: 0 | DQ29: 0 | DR29: 0 | DS29: 0 | DT29: 0 | DU29: 0 | DV29: 0 | DW29: 0 | DX29: 0 | DY29: 0 | DZ29: 0 | EA29: 0 | EB29: =SUM(EB9:EB28) -> 0 | EC29: 0 | ED29: 0 | EE29: 0 | EF29: 0 | EG29: 0 | EH29: 0 | EI29: 0 | EJ29: 0 | EK29: 0 | EL29: 0 | EM29: 0 | EN29: 0 | EO29: 0 | EP29: 0 | EQ29: 0 | ER29: 0 | ES29: 0 | ET29: 0 | EU29: 0 | EV29: 0 | EW29: 0 | EX29: 0 | EY29: 0 | EZ29: 0 | FA29: 0 | FB29: 0 | FC29: 0 | FD29: 0 | FE29: 0 | FF29: 0 | FG29: 0 | FH29: 0 | FI29: 0 | FJ29: 0 | FK29: 0 | FL29: 0 | FM29: 0 | FN29: 0 | FO29: 0 | FP29: 0 | FQ29: 0 | FR29: 0 | FS29: 0 | FT29: 0 | FU29: 0 | FV29: 0 | FW29: 0 | FX29: 0 | FY29: 0 | FZ29: 0 | GA29: 0 | GB29: 0 | GC29: 0 | GD29: 0 | GE29: 0 | GF29: 0 | GG29: 0 | GH29: 0 | GI29: 0 | GJ29: 0 | GK29: 0 | GL29: 0 | GM29: 0 | GN29: =SUM(GN9:GN28) -> 0 | GO29: 0 | GP29: 0 | GQ29: 0 | GR29: 0 | GS29: 0 | GT29: 0 | GU29: 0 | GV29: 0 | GW29: 0 | GX29: 0 | GY29: 0 | GZ29: 0 | HA29: 0 | HB29: 0 | HC29: 0 | HD29: 0 | HE29: 0 | HF29: 0 | HG29: 0 | HH29: 0 | HI29: 0 | HJ29: 0 | HK29: 0 | HL29: 0 | HM29: 0 | HN29: 0 | HO29: 0 | HP29: 0 | HQ29: 0 | HR29: 0 | HS29: 0 | HT29: 0 | HU29: 0 | HV29: 0 | HW29: 0 | HX29: 0 | HY29: 0 | HZ29: 0 | IA29: 0 | IB29: 0 | IC29: 0 | ID29: 0 | IE29: 0 | IF29: 0 | IG29: 0 | IH29: 0 | II29: 0 | IJ29: 0 | IK29: 0 | IL29: 0 | IM29: 0 | IN29: 0 | IO29: 0 | IP29: 0 | IQ29: 0 | IR29: 0 | IS29: 0 | IT29: 0 | IU29: 0 | IV29: 0 | IW29: 0 | IX29: 0 | IY29: 0 | IZ29: =SUM(IZ9:IZ28) -> 0 | JA29: 0 | JB29: 0 | JC29: 0 | JD29: 0 | JE29: 0 | JF29: 0 | JG29: 0 | JH29: 0 | JI29: 0 | JJ29: 0 | JK29: 0 | JL29: 0 | JM29: 0 | JN29: 0 | JO29: 0 | JP29: 0 | JQ29: 0 | JR29: 0 | JS29: 0 | JT29: 0 | JU29: 0 | JV29: 0 | JW29: 0 | JX29: 0 | JY29: 0 | JZ29: 0 | KA29: 0 | KB29: 0 | KC29: 0 | KD29: 0 | KE29: 0 | KF29: 0 | KG29: 0 | KH29: 0 | KI29: 0 | KJ29: 0 | KK29: 0 | KL29: 0 | KM29: 0 | KN29: 0 | KO29: 0 | KP29: 0
B32: =cbo!A2 -> 1 | C32: =INDEX(invoiceno,B32) -> AC 201500-001
A33: 1 | B33: =B9 -> Product 1 | C33: =INDEX($C9:$KP9,MATCH($C$32,$C$4:$KP$4,0)) -> 0 | E33: =C33+(A33/1000000) -> 1e-06 | F33: =LARGE($E$33:$E$52,A33) -> 12.000018 | G33: =MATCH($F33,$E$33:$E$52,0) -> 18 | H33: =INDEX($B$33:$B$52,G33) -> Product 18 | I33: =SUMIF($B$33:$B$52,H33,$C$33:$C$52) -> 12 | K33: =IF(I33=0,"",H33) -> Product 18
A34: =A33+1 -> 2 | B34: Product 2 | C34: 10 | E34: =C34+(A34/1000000) -> 10.000002 | F34: =LARGE($E$33:$E$52,A34) -> 10.000002 | G34: =MATCH($F34,$E$33:$E$52,0) -> 2 | H34: =INDEX($B$33:$B$52,G34) -> Product 2 | I34: =SUMIF($B$33:$B$52,H34,$C$33:$C$52) -> 10 | K34: =IF(I34=0,"",H34) -> Product 2
A35: =A34+1 -> 3 | B35: Product 3 | C35: 0 | E35: 3e-06 | F35: 7.000014 | G35: 14 | H35: Product 14 | I35: 7 | K35: Product 14
A36: 4 | B36: Product 4 | C36: 5 | E36: 5.000004 | F36: 5.000012 | G36: 12 | H36: Product 12 | I36: 5 | K36: Product 12
A37: 5 | B37: Product 5 | C37: 0 | E37: 5e-06 | F37: 5.000004 | G37: 4 | H37: Product 4 | I37: 5 | K37: Product 4
A38: 6 | B38: Product 6 | C38: 3 | E38: 3.000006 | F38: 4.00001 | G38: 10 | H38: Product 10 | I38: 4 | K38: Product 10
A39: 7 | B39: Product 7 | C39: 0 | E39: 7e-06 | F39: 3.000006 | G39: 6 | H39: Product 6 | I39: 3 | K39: Product 6
A40: 8 | B40: Product 8 | C40: 1 | E40: 1.000008 | F40: 1.000008 | G40: 8 | H40: Product 8 | I40: 1 | K40: Product 8
A41: 9 | B41: Product 9 | C41: 0 | E41: 9e-06 | F41: 2e-05 | G41: 20 | H41: Product 20 | I41: 0
A42: 10 | B42: Product 10 | C42: 4 | E42: 4.00001 | F42: 1.9e-05 | G42: 19 | H42: Product 19 | I42: 0
A43: =A42+1 -> 11 | B43: Product 11 | C43: 0 | E43: 1.1e-05 | F43: 1.7e-05 | G43: 17 | H43: Product 17 | I43: 0
A44: 12 | B44: Product 12 | C44: 5 | E44: 5.000012 | F44: 1.6e-05 | G44: 16 | H44: Product 16 | I44: 0
A45: 13 | B45: Product 13 | C45: 0 | E45: 1.3e-05 | F45: 1.5e-05 | G45: 15 | H45: Product 15 | I45: 0
A46: 14 | B46: Product 14 | C46: 7 | E46: 7.000014 | F46: 1.3e-05 | G46: 13 | H46: Product 13 | I46: 0
A47: 15 | B47: Product 15 | C47: 0 | E47: 1.5e-05 | F47: 1.1e-05 | G47: 11 | H47: Product 11 | I47: 0
A48: 16 | B48: Product 16 | C48: 0 | E48: 1.6e-05 | F48: 9e-06 | G48: 9 | H48: Product 9 | I48: 0
A49: 17 | B49: Product 17 | C49: 0 | E49: 1.7e-05 | F49: 7e-06 | G49: 7 | H49: Product 7 | I49: 0
A50: 18 | B50: Product 18 | C50: 12 | E50: 12.000018 | F50: 5e-06 | G50: 5 | H50: Product 5 | I50: 0
A51: 19 | B51: Product 19 | C51: 0 | E51: 1.9e-05 | F51: 3e-06 | G51: 3 | H51: Product 3 | I51: 0
A52: 20 | B52: Product 20 | C52: 0 | E52: 2e-05 | F52: 1e-06 | G52: 1 | H52: Product 1 | I52: 0
H54: =INDEX(C6:KP6,B32) -> PO 33459 | I54: =INDEX(C5:KP5,B32) -> 42014
H55: =INDEX(C7:KP7,B32) -> Customer Name 1
H56: =IF(H55="<<<>>>","",HLOOKUP($H$55,'Customer Setup'!$C$5:$AZ$14,3,FALSE)) -> Customer 1 Address Line 1
H57: =IF(H55="<<<>>>","",HLOOKUP($H$55,'Customer Setup'!$C$5:$AZ$14,4,FALSE)) -> Customer 1 Address Line 2
H58: =IF(H55="<<<>>>","",HLOOKUP($H$55,'Customer Setup'!$C$5:$AZ$14,5,FALSE)) -> Customer 1 Address Line 3
H59: =IF(H55="<<<>>>","",HLOOKUP($H$55,'Customer Setup'!$C$5:$AZ$14,6,FALSE)) -> email@email.com
H60: =IF(H55="<<<>>>","",HLOOKUP($H$55,'Customer Setup'!$C$5:$AZ$14,7,FALSE)) -> +001-188475
A61: 1 | B61: =INDEX(invoiceno,A61) -> AC 201500-001 | H61: =IF(H55="<<<>>>","",HLOOKUP($H$55,'Customer Setup'!$C$5:$AZ$14,8,FALSE)) -> Mr. Joe Him
A62: =A61+1 -> 2 | B62: AC 201500-002 | H62: =IF(H55="<<<>>>","",HLOOKUP($H$55,'Customer Setup'!$C$5:$AZ$14,10,FALSE)) -> Cash on Delivery
A63: =A62+1 -> 3 | B63: AC 201500-003
A64: 4 | B64: AC 201500-004
A65: 5 | B65: AC 201500-005
A66: 6 | B66: AC 201500-006
A67: 7 | B67: AC 201500-007
A68: 8 | B68: AC 201500-008
A69: 9 | B69: AC 201500-009
A70: 10 | B70: AC 201500-010
A71: 11 | B71: AC 201500-011
A72: 12 | B72: AC 201500-012
A73: 13 | B73: AC 201500-013
A74: 14 | B74: AC 201500-014
A75: 15 | B75: AC 201500-015
A76: 16 | B76: AC 201500-016
A77: 17 | B77: AC 201500-017
A78: 18 | B78: AC 201500-018
A79: 19 | B79: AC 201500-019
A80: 20 | B80: AC 201500-020
A81: 21 | B81: AC 201500-021
A82: 22 | B82: AC 201500-022
A83: 23 | B83: AC 201500-023
A84: 24 | B84: AC 201500-024
A85: 25 | B85: AC 201500-025
A86: 26 | B86: AC 201500-026
A87: 27 | B87: AC 201500-027
A88: 28 | B88: AC 201500-028
A89: 29 | B89: AC 201500-029
A90: 30 | B90: AC 201500-030
A91: 31 | B91: AC 201500-031
A92: 32 | B92: AC 201500-032
A93: 33 | B93: AC 201500-033
A94: 34 | B94: AC 201500-034
A95: 35 | B95: AC 201500-035
A96: 36 | B96: AC 201500-036
A97: 37 | B97: AC 201500-037
A98: 38 | B98: AC 201500-038
A99: 39 | B99: AC 201500-039
A100: 40 | B100: AC 201500-040
A101: 41 | B101: AC 201500-041
A102: 42 | B102: AC 201500-042
A103: 43 | B103: AC 201500-043
A104: 44 | B104: AC 201500-044
A105: 45 | B105: AC 201500-045
A106: 46 | B106: AC 201500-046
A107: 47 | B107: AC 201500-047
A108: 48 | B108: AC 201500-048
A109: 49 | B109: AC 201500-049
A110: 50 | B110: AC 201500-050
A111: 51 | B111: AC 201500-051
A112: 52 | B112: AC 201500-052
A113: 53 | B113: AC 201500-053
A114: 54 | B114: AC 201500-054
A115: 55 | B115: AC 201500-055
A116: 56 | B116: AC 201500-056
A117: 57 | B117: AC 201500-057
A118: 58 | B118: AC 201500-058
A119: 59 | B119: AC 201500-059
A120: 60 | B120: AC 201500-060
A121: 61 | B121: AC 201500-061
A122: 62 | B122: AC 201500-062
A123: 63 | B123: AC 201500-063
A124: 64 | B124: AC 201500-064
A125: 65 | B125: =INDEX(invoiceno,A125) -> AC 201500-065
A126: 66 | B126: AC 201500-066
A127: =A126+1 -> 67 | B127: AC 201500-067
A128: 68 | B128: AC 201500-068
A129: 69 | B129: AC 201500-069
A130: 70 | B130: AC 201500-070
A131: 71 | B131: AC 201500-071
A132: 72 | B132: AC 201500-072
A133: 73 | B133: AC 201500-073
A134: 74 | B134: AC 201500-074
A135: 75 | B135: AC 201500-075
A136: 76 | B136: AC 201500-076
A137: 77 | B137: AC 201500-077
A138: 78 | B138: AC 201500-078
A139: 79 | B139: AC 201500-079
A140: 80 | B140: AC 201500-080
A141: 81 | B141: AC 201500-081
A142: 82 | B142: AC 201500-082
A143: 83 | B143: AC 201500-083
A144: 84 | B144: AC 201500-084
A145: 85 | B145: AC 201500-085
A146: 86 | B146: AC 201500-086
A147: 87 | B147: AC 201500-087
A148: 88 | B148: AC 201500-088
A149: 89 | B149: AC 201500-089
A150: 90 | B150: AC 201500-090
A151: 91 | B151: AC 201500-091
A152: 92 | B152: AC 201500-092
A153: 93 | B153: AC 201500-093
A154: 94 | B154: AC 201500-094
A155: 95 | B155: AC 201500-095
A156: 96 | B156: AC 201500-096
A157: 97 | B157: AC 201500-097
A158: 98 | B158: AC 201500-098
A159: 99 | B159: AC 201500-099
A160: 100 | B160: AC 201500-100
A161: 101 | B161: AC 201500-101
A162: 102 | B162: AC 201500-102
A163: 103 | B163: AC 201500-103
A164: 104 | B164: AC 201500-104
A165: 105 | B165: AC 201500-105
A166: 106 | B166: AC 201500-106
A167: 107 | B167: AC 201500-107
A168: 108 | B168: AC 201500-108
A169: 109 | B169: AC 201500-109
A170: 110 | B170: AC 201500-110
A171: 111 | B171: AC 201500-111
A172: 112 | B172: AC 201500-112
A173: 113 | B173: AC 201500-113
A174: 114 | B174: AC 201500-114
A175: 115 | B175: AC 201500-115
A176: 116 | B176: AC 201500-116
A177: 117 | B177: AC 201500-117
A178: 118 | B178: AC 201500-118
A179: 119 | B179: AC 201500-119
A180: 120 | B180: AC 201500-120
A181: 121 | B181: AC 201500-121
A182: 122 | B182: AC 201500-122
A183: 123 | B183: AC 201500-123
A184: 124 | B184: AC 201500-124
A185: 125 | B185: AC 201500-125
A186: 126 | B186: AC 201500-126
A187: 127 | B187: AC 201500-127
A188: 128 | B188: AC 201500-128
A189: 129 | B189: =INDEX(invoiceno,A189) -> AC 201500-129
A190: 130 | B190: AC 201500-130
A191: =A190+1 -> 131 | B191: AC 201500-131
A192: 132 | B192: AC 201500-132
A193: 133 | B193: AC 201500-133
A194: 134 | B194: AC 201500-134
A195: 135 | B195: AC 201500-135
A196: 136 | B196: AC 201500-136
A197: 137 | B197: AC 201500-137
A198: 138 | B198: AC 201500-138
A199: 139 | B199: AC 201500-139
A200: 140 | B200: AC 201500-140
A201: 141 | B201: AC 201500-141
A202: 142 | B202: AC 201500-142
A203: 143 | B203: AC 201500-143
... 157 more rows

Sheet Invoice
A2: Invoice Number to Display :
D4: ='Company Setup'!B4 -> Aripra Worldwide
D5: ="Tax ID : "&'Company Setup'!B12 -> Tax ID : 2788199749
D6: ='Company Setup'!B7 -> Kencana Loka
D7: ='Company Setup'!B8 -> BSD City - Banten
D8: ='Company Setup'!B9 -> Indonesia
D9: ="Email : "&'Company Setup'!B10 -> Email : email@email.com
D10: ="Phone : "&'Company Setup'!B11 -> Phone : +62 21 555555
A12: Bill To :
A13: ='Sales Input'!H55 -> Customer Name 1 | D13: ="Invoice No : "&'Sales Input'!C32 -> Invoice No : AC 201500-001
A14: Address : | D14: ="Date : "&TEXT('Sales Input'!I54,"DD mmm yyy") -> Date : 10 Jan 2015
A15: ='Sales Input'!H56 -> Customer 1 Address Line 1 | D15: ="Customer PO No : "&'Sales Input'!H54 -> Customer PO No : PO 33459
A16: ='Sales Input'!H57 -> Customer 1 Address Line 2 | D16: ="Payment Terms : "&'Sales Input'!H62 -> Payment Terms : Cash on Delivery
A17: ='Sales Input'!H58 -> Customer 1 Address Line 3 | C17: ='Company Setup'!B16&" "&TEXT(D48,"##,0.00") -> USD 7,020.75
A18: ="Email : "&'Sales Input'!H59 -> Email : email@email.com
A19: ="Phone : "&'Sales Input'!H60 -> Phone : +001-188475
A20: ="Contact Person : "&'Sales Input'!H61 -> Contact Person : Mr. Joe Him
A22: Qty | B22: Description | C22: ="Unit Price ("&'Company Setup'!B16&")" -> Unit Price (USD) | D22: ="Total Price ("&'Company Setup'!B16&")" -> Total Price (USD)
A23: ='Sales Input'!I33 -> 12 | B23: ='Sales Input'!K33 -> Product 18 | C23: =IF(B23="",0,VLOOKUP(B23,'Company Setup'!$A$25:$B$44,2,FALSE)) -> 20 | D23: =A23*C23 -> 240 | F23: =IF(B23="",0,(IF(VLOOKUP($B23,'Company Setup'!$A$25:$C$44,3,FALSE)="x",$D23,0))) -> 240
A24: ='Sales Input'!I34 -> 10 | B24: ='Sales Input'!K34 -> Product 2 | C24: =IF(B24="",0,VLOOKUP(B24,'Company Setup'!$A$25:$B$44,2,FALSE)) -> 400 | D24: =A24*C24 -> 4000 | F24: =IF(B24="",0,(IF(VLOOKUP($B24,'Company Setup'!$A$25:$C$44,3,FALSE)="x",$D24,0))) -> 4000
A25: ='Sales Input'!I35 -> 7 | B25: ='Sales Input'!K35 -> Product 14 | C25: =IF(B25="",0,VLOOKUP(B25,'Company Setup'!$A$25:$B$44,2,FALSE)) -> 30 | D25: 210 | F25: =IF(B25="",0,(IF(VLOOKUP($B25,'Company Setup'!$A$25:$C$44,3,FALSE)="x",$D25,0))) -> 210
A26: ='Sales Input'!I36 -> 5 | B26: ='Sales Input'!K36 -> Product 12 | C26: =IF(B26="",0,VLOOKUP(B26,'Company Setup'!$A$25:$B$44,2,FALSE)) -> 90 | D26: 450 | F26: =IF(B26="",0,(IF(VLOOKUP($B26,'Company Setup'!$A$25:$C$44,3,FALSE)="x",$D26,0))) -> 450
A27: ='Sales Input'!I37 -> 5 | B27: ='Sales Input'!K37 -> Product 4 | C27: =IF(B27="",0,VLOOKUP(B27,'Company Setup'!$A$25:$B$44,2,FALSE)) -> 100 | D27: 500 | F27: =IF(B27="",0,(IF(VLOOKUP($B27,'Company Setup'!$A$25:$C$44,3,FALSE)="x",$D27,0))) -> 500
A28: ='Sales Input'!I38 -> 4 | B28: ='Sales Input'!K38 -> Product 10 | C28: =IF(B28="",0,VLOOKUP(B28,'Company Setup'!$A$25:$B$44,2,FALSE)) -> 150 | D28: 600 | F28: =IF(B28="",0,(IF(VLOOKUP($B28,'Company Setup'!$A$25:$C$44,3,FALSE)="x",$D28,0))) -> 600
A29: ='Sales Input'!I39 -> 3 | B29: ='Sales Input'!K39 -> Product 6 | C29: =IF(B29="",0,VLOOKUP(B29,'Company Setup'!$A$25:$B$44,2,FALSE)) -> 44 | D29: 132 | F29: =IF(B29="",0,(IF(VLOOKUP($B29,'Company Setup'!$A$25:$C$44,3,FALSE)="x",$D29,0))) -> 132
A30: ='Sales Input'!I40 -> 1 | B30: ='Sales Input'!K40 -> Product 8 | C30: =IF(B30="",0,VLOOKUP(B30,'Company Setup'!$A$25:$B$44,2,FALSE)) -> 250.5 | D30: 250.5 | F30: =IF(B30="",0,(IF(VLOOKUP($B30,'Company Setup'!$A$25:$C$44,3,FALSE)="x",$D30,0))) -> 250.5
A31: ='Sales Input'!I41 -> 0 | B31: ='Sales Input'!K41 ->  | C31: =IF(B31="",0,VLOOKUP(B31,'Company Setup'!$A$25:$B$44,2,FALSE)) -> 0 | D31: 0 | F31: =IF(B31="",0,(IF(VLOOKUP($B31,'Company Setup'!$A$25:$C$44,3,FALSE)="x",$D31,0))) -> 0
A32: ='Sales Input'!I42 -> 0 | B32: ='Sales Input'!K42 ->  | C32: =IF(B32="",0,VLOOKUP(B32,'Company Setup'!$A$25:$B$44,2,FALSE)) -> 0 | D32: 0 | F32: =IF(B32="",0,(IF(VLOOKUP($B32,'Company Setup'!$A$25:$C$44,3,FALSE)="x",$D32,0))) -> 0
A33: ='Sales Input'!I43 -> 0 | B33: ='Sales Input'!K43 ->  | C33: =IF(B33="",0,VLOOKUP(B33,'Company Setup'!$A$25:$B$44,2,FALSE)) -> 0 | D33: 0 | F33: =IF(B33="",0,(IF(VLOOKUP($B33,'Company Setup'!$A$25:$C$44,3,FALSE)="x",$D33,0))) -> 0
A34: ='Sales Input'!I44 -> 0 | B34: ='Sales Input'!K44 ->  | C34: =IF(B34="",0,VLOOKUP(B34,'Company Setup'!$A$25:$B$44,2,FALSE)) -> 0 | D34: 0 | F34: =IF(B34="",0,(IF(VLOOKUP($B34,'Company Setup'!$A$25:$C$44,3,FALSE)="x",$D34,0))) -> 0
A35: ='Sales Input'!I45 -> 0 | B35: ='Sales Input'!K45 ->  | C35: =IF(B35="",0,VLOOKUP(B35,'Company Setup'!$A$25:$B$44,2,FALSE)) -> 0 | D35: 0 | F35: =IF(B35="",0,(IF(VLOOKUP($B35,'Company Setup'!$A$25:$C$44,3,FALSE)="x",$D35,0))) -> 0
A36: ='Sales Input'!I46 -> 0 | B36: ='Sales Input'!K46 ->  | C36: =IF(B36="",0,VLOOKUP(B36,'Company Setup'!$A$25:$B$44,2,FALSE)) -> 0 | D36: 0 | F36: =IF(B36="",0,(IF(VLOOKUP($B36,'Company Setup'!$A$25:$C$44,3,FALSE)="x",$D36,0))) -> 0
A37: ='Sales Input'!I47 -> 0 | B37: ='Sales Input'!K47 ->  | C37: =IF(B37="",0,VLOOKUP(B37,'Company Setup'!$A$25:$B$44,2,FALSE)) -> 0 | D37: 0 | F37: =IF(B37="",0,(IF(VLOOKUP($B37,'Company Setup'!$A$25:$C$44,3,FALSE)="x",$D37,0))) -> 0
A38: ='Sales Input'!I48 -> 0 | B38: ='Sales Input'!K48 ->  | C38: =IF(B38="",0,VLOOKUP(B38,'Company Setup'!$A$25:$B$44,2,FALSE)) -> 0 | D38: 0 | F38: =IF(B38="",0,(IF(VLOOKUP($B38,'Company Setup'!$A$25:$C$44,3,FALSE)="x",$D38,0))) -> 0
A39: ='Sales Input'!I49 -> 0 | B39: ='Sales Input'!K49 ->  | C39: =IF(B39="",0,VLOOKUP(B39,'Company Setup'!$A$25:$B$44,2,FALSE)) -> 0 | D39: 0 | F39: =IF(B39="",0,(IF(VLOOKUP($B39,'Company Setup'!$A$25:$C$44,3,FALSE)="x",$D39,0))) -> 0
A40: ='Sales Input'!I50 -> 0 | B40: ='Sales Input'!K50 ->  | C40: =IF(B40="",0,VLOOKUP(B40,'Company Setup'!$A$25:$B$44,2,FALSE)) -> 0 | D40: 0 | F40: =IF(B40="",0,(IF(VLOOKUP($B40,'Company Setup'!$A$25:$C$44,3,FALSE)="x",$D40,0))) -> 0
A41: ='Sales Input'!I51 -> 0 | B41: ='Sales Input'!K51 ->  | C41: =IF(B41="",0,VLOOKUP(B41,'Company Setup'!$A$25:$B$44,2,FALSE)) -> 0 | D41: 0 | F41: =IF(B41="",0,(IF(VLOOKUP($B41,'Company Setup'!$A$25:$C$44,3,FALSE)="x",$D41,0))) -> 0
A42: ='Sales Input'!I52 -> 0 | B42: ='Sales Input'!K52 ->  | C42: =IF(B42="",0,VLOOKUP(B42,'Company Setup'!$A$25:$B$44,2,FALSE)) -> 0 | D42: 0 | F42: =IF(B42="",0,(IF(VLOOKUP($B42,'Company Setup'!$A$25:$C$44,3,FALSE)="x",$D42,0))) -> 0
C44: ='Company Setup'!F16 -> Total Sales (USD) | D44: =SUM(D23:D43) -> 6382.5 | F44: =SUM(F23:F42) -> 6382.5
C46: ='Company Setup'!F18 -> VAT on Taxable Items (10%) | D46: =F44*'Company Setup'!B18 -> 638.25
C48: ='Company Setup'!F20 -> Total Invoice (USD) | D48: =SUM(D44:D47) -> 7020.75
A50: Please send your payment to our bank account :
A51: ="Bank Name : "&'Company Setup'!F8 -> Bank Name : Bank GGG WORLDWIDE
A52: ="Branch : "&'Company Setup'!F9 -> Branch : 775
A53: ="Account No : "&'Company Setup'!F10 -> Account No : 271883749
A54: ="IBAN No : "&'Company Setup'!F11 -> IBAN No : IBAN 453672271883749
A55: ="Swift Code : "&'Company Setup'!F12 -> Swift Code : JHHSIIX
A56: ="Beneficiary Name : "&'Company Setup'!F7 -> Beneficiary Name : Aripra Worldwide
A57: ='Company Setup'!F22 -> [ THANK YOU FOR YOUR BUSINESS ]

Sheet cbo (hidden)
A1: DO NOT DELETE THIS SHEET !!!!
A2: 1
